Workbook

Sheet 基本データ
A1: 工事情報
A2: 工事名
A3: 注文書契約の有無 | D3: →注文書・請書のやり取りをしていれば「あり」を選択してください。
A4: （ありの場合）注文書番号 | D4: →注文書に記載されている注文番号の上6桁を入力してください。
A5: （あり請負の場合）保留金 | D5: →注文書に記載されている出来高の保留割合を入力してください。通常「0」か「10」です。
A6: 工事番号 | D6: →作業所長にお問い合わせください。
A7: 手形比率 | D7: →ご不明な場合は作業所長にお問い合わせください。
A9: 今回締日 | D9: →曜日に関係なく月末日を入力してください。
A11: 業者情報
A12: 住所 | E12: 指定請求書と出来高内訳をクリアします↑
A13: 会社名
A14: 代表者職氏名
A15: 電話番号
A16: ファックス番号
A17: 適格請求書登録番号 | D17: →（例）T2345678901234
A19: 口座情報
A20: 《振込銀行口座》 | D20: 《でんさい口座》
A21: 金融機関名 | D21: でんさい利用者番号
A22: 店名 | D22: 金融機関名
A23: 口座種別 | D23: 支店名
A24: 口座番号 | D24: 口座種別
A25: 口座名義ﾌﾘｶﾞﾅ | D25: 口座番号
A26: 口座名義 | D26: 口座名義ﾌﾘｶﾞﾅ
D27: 口座名義

Sheet 指定請求書
C4: 株式会社ＮＳフォスター | Q4: 御中 | Y4: 請求書 | BE4: =IF(基本データ!B9="","年 月 日締請求",基本データ!B9) -> 年 月 日締請求
B7: 下記の通り請求致します。 | AP7: 住所 | AW7: =IF(基本データ!B12="","",基本データ!B12) -> 
B9: 請求金額 | I9: =SUM(AM42:AS47) -> ¥0.- | AP9: 会社名 | AW9: =IF(基本データ!B13="","",基本データ!B13) ->  | BN9: 印
AP11: 代表者職氏名 | AW11: =IF(基本データ!B14="","",基本データ!B14) -> 
B13: 工事名称 | G13: =IF(基本データ!B2="","",基本データ!B2) ->  | AW13: TEL | AZ13: =IF(基本データ!B15="","",基本データ!B15) ->  | BG13: FAX | BJ13: =IF(基本データ!B16="","",基本データ!B16) -> 
AC15: 契 約 | AG15: 非契約 | AK15: 単価契約 | AP15: 登録番号 | AW15: =LEFT(基本データ!B17,2)&" - "&MID(基本データ!B17,3,4)&" - "&MID(基本データ!B17,7,4)&" - "&RIGHT(基本データ!B17,4) -> - - -
AV17: 【振込銀行口座】
B18: 注文番号 | F18: =IF(OR(基本データ!B3="なし",基本データ!B3=""),"",基本データ!B4) ->  | K18: 工事番号 | O18: =IF(基本データ!B6="","",基本データ!B6) ->  | T18: 手形比率 | X18: =基本データ!B7 -> 0 | AA18: ％
AL19: ※は軽減税率対象 | AW19: 金融機関名 | BC19: =IF(基本データ!B21="","",基本データ!B21) -> 
B21: 工種ｺｰﾄﾞ | F21: 日付 | I21: 品名等 | Z21: 単位 | AC21: 数量 | AG21: 単価 | AL21: 税抜金額 | AS21: ※ | AW21: 店名 | BC21: =IF(基本データ!B22="","",基本データ!B22) -> 
AW23: 預金種目 | BC23: =IF(基本データ!B23="","",基本データ!B23) -> 
AW25: 口座番号 | BC25: =IF(基本データ!B24="","",基本データ!B24) -> 
AW27: フリガナ | BC27: =IF(基本データ!B25="","",基本データ!B25) -> 
AW29: 口座名義 | BC29: =IF(基本データ!B26="","",基本データ!B26) -> 
AV31: 【でんさい口座】
AW33: でんさい利用者番号 | BC33: =IF(基本データ!E21="","",基本データ!E21) -> 
AW35: 金融機関名 | BC35: =IF(基本データ!E22="","",基本データ!E22) -> 
AW37: 店名 | BC37: =IF(基本データ!E23="","",基本データ!E23) -> 
AW39: 預金種目 | BC39: =IF(基本データ!E24="","",基本データ!E24) -> 
B40: 契約金額 | Y40: 税抜金額 | AF40: 消費税額 | AM40: 税込金額
AW41: 口座番号 | BC41: =IF(基本データ!E25="","",基本データ!E25) -> 
B42: 前月迄出来高 | R42: 当月課税10％対象 | Y42: =SUMIF(AS23:AS38,"",AL23:AR38)-I50+I52 -> 0 | AF42: =ROUND(Y42*0.1,0)+AF54 -> 0 | AM42: =SUM(Y42:AL43) -> 0
AW43: フリガナ | BC43: =IF(基本データ!E26="","",基本データ!E26) -> 
B44: 当月出来高 | R44: 当月課税 8％対象 | Y44: =SUMIF(AS23:AS38,"※",AL23:AR38) -> 0 | AF44: =ROUND(Y44*0.08,0) -> 0 | AM44: =SUM(Y44:AL45) -> 0
AW45: 口座名義 | BC45: =IF(基本データ!E27="","",基本データ!E27) -> 
B46: 出来高累計 | R46: 非・不課税 | Y46: =SUMIF(AS23:AS38,"非",AL23:AR38) -> 0 | AM46: =SUM(Y46:AL47) -> 0
B48: 前月迄保留金 | Y48: 前月迄 | AF48: 当月 | AM48: 当月迄
AW49: 部署長 | BA49: 施工担当部 | BM49: 所長
B50: 当月保留金 | R50: 税抜支払金額
B52: 当月保留金解除額 | R52: 消費税額
B54: 当月支払金額 | I54: =IF(基本データ!B3="なし","",I44-I50+I52) -> 0 | R54: 消費税額調整額
B56: 支払残 | I56: =IF(OR(基本データ!B3="あり（単価契約）",基本データ!B3="なし"),"",I40-Y50-AF50) -> 0 | R56: 税込支払金額

Sheet 出来高内訳書
C1: ①契約内容を入力してください。各項目ごとに集計する場合は、費目欄に「小計」と入力し、小計の列を含めNo.欄に数字を入力してください。 最後に費目欄に「合計」の入力もお願いします（【入力例1】参照）。合計のみの場合はNo.欄に数字を入力しないでください（【入力例2】参照）。 金額欄は「計算」ボタンを押せば自動で計算します。 ②今月が2回目以降の請求であれば、「月を更新」ボタンを押してください。 ③出来高累計欄（非契約の場合は当月出来高欄）の数量を入力してください。一式の項目は、金額も入力してください。 ④「計算」ボタンを押してください。入力漏れがなければ、「印刷」ボタンを押してください。 ※注意※ 一度ボタンを押すと元に戻すことができません！
F2: 出来高内訳書 | N2: =基本データ!B9 -> 00:00:00
B3: 工事名称 | C3: =基本データ!B2 -> 0 | K3: 協力業者名 | M3: =基本データ!B13 -> 0
P4: ※は軽減税率対象
E5: 契約金額 | H5: 前月迄出来高 | J5: 当月出来高 | L5: 出来高累計 | N5: 契約残額
A6: No. | B6: 費目 | C6: 細目 | D6: 単位 | E6: 単価 | F6: 数量 | G6: 金額 | H6: 数量 | I6: 金額 | J6: 数量 | K6: 金額 | L6: 数量 | M6: 金額 | N6: 数量 | O6: 金額 | P6: ※

Sheet 【入力例】基本データ
A1: 工事情報
A2: 工事名 | B2: ○○○○○工事
A3: 注文書契約の有無 | B3: あり（請負） | D3: →注文書・請書のやり取りをしていれば「あり」を選択してください。
A4: （ありの場合）注文書番号 | B4: B23601 | D4: →注文書に記載されている注文番号の上6桁を入力してください。
A5: （あり請負の場合）保留金 | B5: 10% | D5: →注文書に記載されている出来高の保留割合を入力してください。通常「0」か「10」です。
A6: 工事番号 | B6: B236 | D6: →作業所長にお問い合わせください。
A7: 手形比率 | B7: 60% | D7: →ご不明な場合は作業所長にお問い合わせください。
A9: 今回締日 | B9: 2023-06-30 | D9: →曜日に関係なく月末日を入力してください。
A11: 業者情報
A12: 住所 | B12: 大阪市浪速区大国2-1-19 | E12: 指定請求書と出来高内訳をクリアします↑
A13: 会社名 | B13: ○○株式会社
A14: 代表者職氏名 | B14: 代表取締役 ○○○○
A15: 電話番号 | B15: 06-1111-1111
A16: ファックス番号 | B16: 06-2222-2222
A17: 適格請求書登録番号 | B17: T1234567890123 | D17: →（例）T2345678901234
A19: 口座情報
A20: 《振込銀行口座》 | D20: 《でんさい口座》
A21: 金融機関名 | B21: A銀行 | D21: でんさい利用者番号 | E21: 00000aaaa
A22: 店名 | B22: B支店 | D22: 金融機関名 | E22: A銀行
A23: 口座種別 | B23: 当座 | D23: 支店名 | E23: B支店
A24: 口座番号 | B24: 1234567 | D24: 口座種別 | E24: 当座
A25: 口座名義ﾌﾘｶﾞﾅ | B25: ﾏﾙﾏﾙ.ｶ | D25: 口座番号 | E25: 1234567
A26: 口座名義 | B26: ○○株式会社 | D26: 口座名義ﾌﾘｶﾞﾅ | E26: ﾏﾙﾏﾙ.ｶ
D27: 口座名義 | E27: ○○株式会社

Sheet 【入力例・契約】指定請求書
C4: 株式会社ＮＳフォスター | Q4: 御中 | Y4: 請求書 | BE4: =【入力例】基本データ!B9 -> 2023-06-30
B7: 下記の通り請求致します。 | AP7: 住所 | AW7: =【入力例】基本データ!B12 -> 大阪市浪速区大国2-1-19
B9: 請求金額 | I9: =SUM(AM42:AS47) -> ¥330,000.- | AP9: 会社名 | AW9: =【入力例】基本データ!B13 -> ○○株式会社 | BN9: 印
AP11: 代表者職氏名 | AW11: =【入力例】基本データ!B14 -> 代表取締役 ○○○○
B13: 工事名称 | G13: =【入力例】基本データ!B2 -> ○○○○○工事 | AW13: TEL | AZ13: =【入力例】基本データ!B15 -> 06-1111-1111 | BG13: FAX | BJ13: =【入力例】基本データ!B16 -> 06-2222-2222
AC15: 契 約 | AG15: 非契約 | AK15: 単価契約 | AP15: 登録番号 | AW15: =LEFT(【入力例】基本データ!B17,2)&" - "&MID(【入力例】基本データ!B17,3,4)&" - "&MID(【入力例】基本データ!B17,7,4)&" - "&RIGHT(【入力例】基本データ!B17,4) -> T1 - 2345 - 6789 - 0123
AV17: 【振込銀行口座】
B18: 注文番号 | F18: =IF(【入力例】基本データ!B3="なし","",【入力例】基本データ!B4) -> B23601 | K18: 工事番号 | O18: =【入力例】基本データ!B6 -> B236 | T18: 手形比率 | X18: =【入力例】基本データ!B7 -> 60 | AA18: ％
AL19: ※は軽減税率対象 | AW19: 金融機関名 | BC19: =【入力例】基本データ!B21 -> A銀行
B21: 工種ｺｰﾄﾞ | F21: 日付 | I21: 品名等 | Z21: 単位 | AC21: 数量 | AG21: 単価 | AL21: 税抜金額 | AS21: ※ | AW21: 店名 | BC21: =【入力例】基本データ!B22 -> B支店
I23: 土工事 | Z23: 式 | AC23: 1 | AL23: 300,000 | AW23: 預金種目 | BC23: =【入力例】基本データ!B23 -> 当座
AW25: 口座番号 | BC25: =【入力例】基本データ!B24 -> 1234567
AW27: フリガナ | BC27: =【入力例】基本データ!B25 -> ﾏﾙﾏﾙ.ｶ
AW29: 口座名義 | BC29: =【入力例】基本データ!B26 -> ○○株式会社
AV31: 【でんさい口座】
AW33: でんさい利用者番号 | BC33: =IF(【入力例】基本データ!E21="","",【入力例】基本データ!E21) -> 00000aaaa
AW35: 金融機関名 | BC35: =IF(【入力例】基本データ!E22="","",【入力例】基本データ!E22) -> A銀行
AW37: 店名 | BC37: =IF(【入力例】基本データ!E23="","",【入力例】基本データ!E23) -> B支店
AW39: 預金種目 | BC39: =IF(【入力例】基本データ!E24="","",【入力例】基本データ!E24) -> 当座
B40: 契約金額 | I40: 660,000 | Y40: 税抜金額 | AF40: 消費税額 | AM40: 税込金額
AW41: 口座番号 | BC41: =IF(【入力例】基本データ!E25="","",【入力例】基本データ!E25) -> 1234567
B42: 前月迄出来高 | R42: 当月課税10％対象 | Y42: =SUMIF(AS23:AS38,"",AL23:AR38)-I50+I52 -> 300,000 | AF42: =ROUND(Y42*0.1,0)+AF54 -> 30,000 | AM42: =SUM(Y42:AL43) -> 330,000
AW43: フリガナ | BC43: =IF(【入力例】基本データ!E26="","",【入力例】基本データ!E26) -> ﾏﾙﾏﾙ.ｶ
B44: 当月出来高 | I44: 300,000 | R44: 当月課税 8％対象 | Y44: =SUMIF(AS23:AS38,"※",AL23:AR38) -> 0 | AF44: =ROUND(Y44*0.08,0) -> 0 | AM44: =SUM(Y44:AL45) -> 0
AW45: 口座名義 | BC45: =IF(【入力例】基本データ!E27="","",【入力例】基本データ!E27) -> ○○株式会社
B46: 出来高累計 | I46: 300,000 | R46: 非・不課税 | Y46: =SUMIF(AS23:AS38,"非",AL23:AR38) -> 0 | AM46: =SUM(Y46:AL47) -> 0
B48: 前月迄保留金 | Y48: 前月迄 | AF48: 当月 | AM48: 当月迄
AW49: 部署長 | BA49: 施工担当部 | BM49: 所長
B50: 当月保留金 | R50: 税抜支払金額 | AF50: 300,000 | AM50: 300,000
B52: 当月保留金解除額 | R52: 消費税額 | AF52: 30,000 | AM52: 30,000
B54: 当月支払金額 | I54: =IF(【入力例】基本データ!B3="なし","",I44-I50+I52) -> 300,000 | R54: 消費税額調整額 | AF54: 0
B56: 支払残 | I56: =IF(OR(【入力例】基本データ!B3="あり（単価契約）",【入力例】基本データ!B3="なし"),"",I40-Y50-AF50) -> 360,000 | R56: 税込支払金額 | AF56: 330,000 | AM56: 330,000

Sheet 【入力例・非契約】指定請求書
C4: 株式会社ＮＳフォスター | Q4: 御中 | Y4: 請求書 | BE4: =【入力例】基本データ!B9 -> 2023-06-30
B7: 下記の通り請求致します。 | AP7: 住所 | AW7: =【入力例】基本データ!B12 -> 大阪市浪速区大国2-1-19
B9: 請求金額 | I9: =SUM(AM42:AS47) -> ¥184,000.- | AP9: 会社名 | AW9: =【入力例】基本データ!B13 -> ○○株式会社 | BN9: 印
AP11: 代表者職氏名 | AW11: =【入力例】基本データ!B14 -> 代表取締役 ○○○○
B13: 工事名称 | G13: =【入力例】基本データ!B2 -> ○○○○○工事 | AW13: TEL | AZ13: =【入力例】基本データ!B15 -> 06-1111-1111 | BG13: FAX | BJ13: =【入力例】基本データ!B16 -> 06-2222-2222
AC15: 契 約 | AG15: 非契約 | AK15: 単価契約 | AP15: 登録番号 | AW15: =LEFT(【入力例】基本データ!B17,2)&" - "&MID(【入力例】基本データ!B17,3,4)&" - "&MID(【入力例】基本データ!B17,7,4)&" - "&RIGHT(【入力例】基本データ!B17,4) -> T1 - 2345 - 6789 - 0123
AV17: 【振込銀行口座】
B18: 注文番号 | F18: =IF(【入力例】基本データ!B3="なし","",【入力例】基本データ!B4) -> B23601 | K18: 工事番号 | O18: =【入力例】基本データ!B6 -> B236 | T18: 手形比率 | X18: =【入力例】基本データ!B7 -> 60 | AA18: ％
AL19: ※は軽減税率対象 | AW19: 金融機関名 | BC19: =【入力例】基本データ!B21 -> A銀行
B21: 工種ｺｰﾄﾞ | F21: 日付 | I21: 品名等 | Z21: 単位 | AC21: 数量 | AG21: 単価 | AL21: 税抜金額 | AS21: ※ | AW21: 店名 | BC21: =【入力例】基本データ!B22 -> B支店
I23: 別紙明細書通り | Z23: 式 | AC23: 1 | AL23: 100,100 | AW23: 預金種目 | BC23: =【入力例】基本データ!B23 -> 当座
Z25: 式 | AC25: 1 | AL25: 50,000 | AS25: ※ | AW25: 口座番号 | BC25: =【入力例】基本データ!B24 -> 1234567
Z27: 式 | AC27: 1 | AL27: 20,000 | AS27: 非 | AW27: フリガナ | BC27: =【入力例】基本データ!B25 -> ﾏﾙﾏﾙ.ｶ
I29: 値引 | Z29: 式 | AC29: 1 | AL29: (100) | AW29: 口座名義 | BC29: =【入力例】基本データ!B26 -> ○○株式会社
AV31: 【でんさい口座】
AW33: でんさい利用者番号 | BC33: =IF(【入力例】基本データ!E21="","",【入力例】基本データ!E21) -> 00000aaaa
AW35: 金融機関名 | BC35: =IF(【入力例】基本データ!E22="","",【入力例】基本データ!E22) -> A銀行
AW37: 店名 | BC37: =IF(【入力例】基本データ!E23="","",【入力例】基本データ!E23) -> B支店
AW39: 預金種目 | BC39: =IF(【入力例】基本データ!E24="","",【入力例】基本データ!E24) -> 当座
B40: 契約金額 | Y40: 税抜金額 | AF40: 消費税額 | AM40: 税込金額
AW41: 口座番号 | BC41: =IF(【入力例】基本データ!E25="","",【入力例】基本データ!E25) -> 1234567
B42: 前月迄出来高 | R42: 当月課税10％対象 | Y42: =SUMIF(AS23:AS38,"",AL23:AR38)-I50+I52 -> 100,000 | AF42: =ROUND(Y42*0.1,0)+AF54 -> 10,000 | AM42: =SUM(Y42:AL43) -> 110,000
AW43: フリガナ | BC43: =IF(【入力例】基本データ!E26="","",【入力例】基本データ!E26) -> ﾏﾙﾏﾙ.ｶ
B44: 当月出来高 | R44: 当月課税 8％対象 | Y44: =SUMIF(AS23:AS38,"※",AL23:AR38) -> 50,000 | AF44: =ROUND(Y44*0.08,0) -> 4,000 | AM44: =SUM(Y44:AL45) -> 54,000
AW45: 口座名義 | BC45: =IF(【入力例】基本データ!E27="","",【入力例】基本データ!E27) -> ○○株式会社
B46: 出来高累計 | R46: 非・不課税 | Y46: =SUMIF(AS23:AS38,"非",AL23:AR38) -> 20,000 | AM46: =SUM(Y46:AL47) -> 20,000
B48: 前月迄保留金 | Y48: 前月迄 | AF48: 当月 | AM48: 当月迄
AW49: 部署長 | BA49: 施工担当部 | BM49: 所長
B50: 当月保留金 | R50: 税抜支払金額
B52: 当月保留金解除額 | R52: 消費税額
B54: 当月支払金額 | R54: 消費税額調整額
B56: 支払残 | R56: 税込支払金額

Sheet 【入力例1】出来高内訳書
C1: ①契約内容を入力してください。各項目ごとに集計する場合は、費目欄に「小計」と入力し、小計の列を含めNo.欄に数字を入力してください。 最後に費目欄に「合計」の入力もお願いします（【入力例1】参照）。合計のみの場合はNo.欄に数字を入力しないでください（【入力例2】参照）。 金額欄は「計算」ボタンを押せば自動で計算します。 ②今月が2回目以降の請求であれば、「月を更新」ボタンを押してください。 ③出来高累計欄（非契約の場合は当月出来高欄）の数量を入力してください。一式の項目は、金額も入力してください。 ④「計算」ボタンを押してください。入力漏れがなければ、「印刷」ボタンを押してください。 ※注意※ 一度ボタンを押すと元に戻すことができません！
F2: 出来高内訳書 | N2: =【入力例】基本データ!B9 -> 2023-06-30
B3: 工事名称 | C3: =【入力例】基本データ!B2 -> ○○○○○工事 | K3: 協力業者名 | M3: =【入力例】基本データ!B13 -> ○○株式会社
P4: ※は軽減税率対象
E5: 契約金額 | H5: 前月迄出来高 | J5: 当月出来高 | L5: 出来高累計 | N5: 契約残額
A6: No. | B6: 費目 | C6: 細目 | D6: 単位 | E6: 単価 | F6: 数量 | G6: 金額 | H6: 数量 | I6: 金額 | J6: 数量 | K6: 金額 | L6: 数量 | M6: 金額 | N6: 数量 | O6: 金額 | P6: ※
A7: 1 | B7: 土工事
A8: 1 | B8: ○ | D8: ｍ3 | E8: 1,000 | F8: 150.4 | G8: 150,400 | J8: 50 | K8: 50,000 | L8: 50 | M8: 50,000 | N8: 100.4 | O8: 100,400
A9: 1 | B9: ○ | D9: ｍ3 | E9: 1,500 | F9: 60.8 | G9: 91,200 | J9: 30.8 | K9: 46,200 | L9: 30.8 | M9: 46,200 | N9: 30 | O9: 45,000
A10: 1 | B10: ○ | D10: ｍ3 | E10: 2,000 | F10: 10.22 | G10: 20,440 | J10: 5.91 | K10: 11,820 | L10: 5.91 | M10: 11,820 | N10: 4.31 | O10: 8,620
A11: 1 | B11: 値引 | D11: 式 | E11: (2,040) | F11: 1 | G11: (2,040) | J11: 1 | K11: (20) | L11: 1 | M11: (20) | N11: 1 | O11: (2,020)
A12: 1 | B12: 小計 | G12: 260,000 | K12: 108,000 | M12: 108,000 | O12: 152,000
A14: 2 | B14: 舗装工事
A15: 2 | B15: □ | D15: ｍ2 | E15: 1,200 | F15: 400 | G15: 480,000 | J15: 200 | K15: 240,000 | L15: 200 | M15: 240,000 | N15: 200 | O15: 240,000
A16: 2 | B16: □ | D16: ｍ2 | E16: 1,500 | F16: 600 | G16: 900,000 | J16: 300 | K16: 450,000 | L16: 300 | M16: 450,000 | N16: 300 | O16: 450,000
A17: 2 | B17: □ | D17: ｍ2 | E17: 3,500 | F17: 24 | G17: 84,000 | J17: 24 | K17: 84,000 | L17: 24 | M17: 84,000 | N17: 0 | O17: 0
A18: 2 | B18: 現場管理費 | D18: 式 | E18: 580,000 | F18: 1 | G18: 580,000 | J18: 1 | K18: 300,000 | L18: 1 | M18: 300,000 | N18: 1 | O18: 280,000
A19: 2 | B19: 法定福利費 | D19: 式 | E19: 100,000 | F19: 1 | G19: 100,000 | J19: 1 | K19: 60,000 | L19: 1 | M19: 60,000 | N19: 1 | O19: 40,000
A20: 2 | B20: 値引 | D20: 式 | E20: (4,000) | F20: 1 | G20: (4,000) | J20: 1 | K20: (4,000) | L20: 1 | M20: (4,000) | N20: 0 | O20: 0
A21: 2 | B21: 小計 | G21: 2,140,000 | K21: 1,130,000 | M21: 1,130,000 | O21: 1,010,000
B23: 合計 | G23: 2,400,000 | K23: 1,238,000 | M23: 1,238,000 | O23: 1,162,000

Sheet 【入力例2】出来高内訳書
C1: ①契約内容を入力してください。各項目ごとに集計する場合は、費目欄に「小計」と入力し、小計の列を含めNo.欄に数字を入力してください。 最後に費目欄に「合計」の入力もお願いします（【入力例1】参照）。合計のみの場合はNo.欄に数字を入力しないでください（【入力例2】参照）。 金額欄は「計算」ボタンを押せば自動で計算します。 ②今月が2回目以降の請求であれば、「月を更新」ボタンを押してください。 ③出来高累計欄（非契約の場合は当月出来高欄）の数量を入力してください。一式の項目は、金額も入力してください。 ④「計算」ボタンを押してください。入力漏れがなければ、「印刷」ボタンを押してください。 ※注意※ 一度ボタンを押すと元に戻すことができません！
F2: 出来高内訳書 | N2: =【入力例】基本データ!B9 -> 2023-06-30
B3: 工事名称 | C3: =【入力例】基本データ!B2 -> ○○○○○工事 | K3: 協力業者名 | M3: =【入力例】基本データ!B13 -> ○○株式会社
P4: ※は軽減税率対象
E5: 契約金額 | H5: 前月迄出来高 | J5: 当月出来高 | L5: 出来高累計 | N5: 契約残額
A6: No. | B6: 費目 | C6: 細目 | D6: 単位 | E6: 単価 | F6: 数量 | G6: 金額 | H6: 数量 | I6: 金額 | J6: 数量 | K6: 金額 | L6: 数量 | M6: 金額 | N6: 数量 | O6: 金額 | P6: ※
B7: 土工事
B8: ○ | D8: ｍ3 | E8: 1,000 | F8: 150.4 | G8: 150,400 | J8: 50 | K8: 50,000 | L8: 50 | M8: 50,000 | N8: 100.4 | O8: 100,400
B9: ○ | D9: ｍ3 | E9: 1,500 | F9: 60.8 | G9: 91,200 | J9: 30.8 | K9: 46,200 | L9: 30.8 | M9: 46,200 | N9: 30 | O9: 45,000
B10: ○ | D10: ｍ3 | E10: 2,000 | F10: 10.22 | G10: 20,440 | J10: 5.91 | K10: 11,820 | L10: 5.91 | M10: 11,820 | N10: 4.31 | O10: 8,620
B11: ○ | D11: ｍ3 | E11: 500 | F11: 100 | G11: 50,000 | J11: 50 | K11: 25,000 | L11: 50 | M11: 25,000 | N11: 50 | O11: 25,000
B12: 諸経費 | D12: 式 | E12: 300,000 | F12: 1 | G12: 300,000 | J12: 1 | K12: 140,000 | L12: 1 | M12: 140,000 | N12: 1 | O12: 160,000
B13: 法定福利費 | D13: 式 | E13: 50,000 | F13: 1 | G13: 50,000 | J13: 1 | K13: 27,000 | L13: 1 | M13: 27,000 | N13: 1 | O13: 23,000
B14: 値引 | D14: 式 | E14: (2,040) | F14: 1 | G14: (2,040) | J14: 1 | K14: (20) | L14: 1 | M14: (20) | N14: 1 | O14: (2,020)
B16: 合計 | G16: =SUM(G7:G15) -> 660,000 | K16: =SUM(K7:K15) -> 300,000 | M16: =SUM(M7:M15) -> 300,000 | O16: =SUM(O7:O15) -> 360,000
